fUSD/lending_fUSD_20250804
["ID","MTS","AMOUNT","RATE_DAILY","PERIOD"]
[377235427,1754305948914,-537.4,0.00039726,2]
[377235428,1754305948926,-537.04,0.00039726,2]
[377235429,1754305948937,-450.14,0.00039726,2]
[377235430,1754305948947,-1175.36,0.00039726,2]
[377235431,1754305948958,-456.48,0.00039726,2]
[377235432,1754305948967,-400.0,0.00039726,2]
[377235433,1754305948977,-798.27,0.00039726,2]
[377235434,1754305948987,-1154.12,0.00039726,2]
[377235435,1754305948998,-1226.27,0.00039726,2]
[377235436,1754305949008,-939.52,0.00039726,2]
[377235437,1754305949017,-400.0,0.00039726,2]
[377235438,1754305949027,-786.99,0.00039726,2]
[377235439,1754305949244,-333.98978166,0.00039726,2]
[377235440,1754305949255,-400.0,0.00039726,2]
[377235441,1754305949265,-869.19,0.00039726,2]
[377235442,1754305949275,-842.4,0.00039726,2]
[377235443,1754305949285,-700.37,0.00039726,2]
[377235444,1754305949296,-400.0,0.00039726,2]
[377235445,1754305949306,-1791.49,0.00039726,2]
[377235446,1754305949316,-1221.49,0.00039726,2]
[377235447,1754305949325,-460.0,0.00039726,2]
[377235448,1754305949335,-991.24,0.00039726,2]
[377235449,1754305949345,-1000.94,0.00039726,2]
[377235450,1754305949354,-400.0,0.00039726,2]
[377235451,1754305949364,-1747.77,0.00039726,2]
[377235452,1754305949374,-400.0,0.00039726,2]
[377235453,1754305949383,-1316.83,0.00039726,2]
[377235454,1754305949393,-755.49,0.00039726,2]
[377235455,1754305949403,-1344.32,0.00039726,2]
[377235456,1754305949412,-778.88,0.00039726,2]
[377235457,1754305949422,-400.0,0.00039726,2]
[377235458,1754305949432,-1539.3,0.00039726,2]
[377235459,1754305949442,-444.22,0.00039726,2]
[377235460,1754305949451,-1258.35,0.00039726,2]
[377235461,1754305949461,-400.0,0.00039726,2]
[377235462,1754305949471,-400.0,0.00039726,2]
[377235463,1754305949481,-221.24,0.00039726,2]
[377235464,1754305949490,-400.0,0.00039726,2]
[377235465,1754305949500,-1113.84,0.00039726,2]
[377235466,1754305949509,-1182.86,0.00039726,2]
[377235467,1754305949519,-4729.89,0.00039726,2]
[377235468,1754305949529,-1278.85,0.00039726,2]
[377235469,1754305949538,-454.82,0.00039726,2]
[377235470,1754305949548,-492.55,0.00039726,2]
[377235471,1754305949557,-1031.98,0.00039726,2]
[377235472,1754305949567,-775.41,0.00039726,2]
[377235473,1754305949577,-400.0,0.00039726,2]
[377235474,1754305949586,-400.0,0.00039726,2]
[377235475,1754305949596,-1202.77,0.00039726,2]
[377235476,1754305949605,-400.0,0.00039726,2]
[377235477,1754305949614,-1481.93,0.00039726,2]
[377235478,1754305949623,-400.0,0.00039726,2]
[377235479,1754305949634,-1675.62,0.00039726,2]
[377235480,1754305949643,-815.04,0.00039726,2]
[377235481,1754305949653,-584.39,0.00039726,2]
[377235482,1754305949663,-679.61,0.00039726,2]
[377235483,1754305949672,-744.37,0.00039726,2]
[377235484,1754305949681,-497.31366048,0.00039726,2]
[377235485,1754305949691,-400.0,0.00039726,2]
[377235486,1754305949700,-2502.12,0.00039726,2]
[377235487,1754305949710,-1340.53,0.00039726,2]
[377235488,1754305949719,-1484.28,0.00039726,2]
[377235489,1754305949729,-356.55763912,0.00039726,2]
[377235490,1754305949738,-1012.72,0.00039726,2]
[377235491,1754305949748,-370.54860571,0.00039726,2]
[377235492,1754305949758,-2328.28,0.00039726,2]
[377235493,1754305949768,-1969.15,0.00039726,2]
[377235494,1754305949777,-400.0,0.00039726,2]
[377235495,1754305949787,-1435.3,0.00039726,2]
[377235496,1754305949796,-400.0,0.00039726,2]
[377235497,1754305949805,-400.0,0.00039726,2]
[377235498,1754305949815,-913.42,0.00039726,2]
[377235499,1754305949824,-400.0,0.00039726,2]
[377235500,1754305949833,-1703.95,0.00039726,2]
[377235501,1754305949843,-400.0,0.00039726,2]
[377235502,1754305949852,-741.38,0.00039726,2]
[377235503,1754305949862,-2504.25,0.00039726,2]
[377235504,1754305949871,-400.0,0.00039726,2]
[377235505,1754305949881,-463.77881721,0.00039726,2]
[377235506,1754305949890,-400.0,0.00039726,2]
[377235507,1754305949900,-1030.22,0.00039726,2]
[377235508,1754305949911,-400.0,0.00039726,2]
[377235509,1754305949922,-400.0,0.00039726,2]
[377235510,1754305949931,-400.0,0.00039726,2]
[377235511,1754305949941,-400.0,0.00039726,2]
[377235512,1754305949951,-400.0,0.00039726,2]
[377235513,1754305949961,-1237.75,0.00039726,2]
[377235514,1754305949971,-400.0,0.00039726,2]
[377235515,1754305949981,-623.67,0.00039726,2]
[377235516,1754305949990,-400.0,0.00039726,2]
[377235517,1754305950000,-992.32,0.00039726,2]
[377235518,1754305950009,-602.81,0.00039726,2]
[377235519,1754305950020,-400.0,0.00039726,2]
[377235520,1754305950029,-400.0,0.00039726,2]
[377235521,1754305950039,-537.5,0.00039726,2]
[377235522,1754305950049,-956.99,0.00039726,2]
[377235523,1754305950058,-630.59,0.00039726,2]
[377235524,1754305950068,-1585.73,0.00039726,2]
[377235525,1754305950078,-626.409267,0.00039726,14]
[377235526,1754305950089,-1301.61,0.00039726,2]
[377235527,1754305950101,-1889.25,0.00039726,2]
[377235528,1754305950111,-924.72,0.00039726,2]
[377235529,1754305950121,-641.71,0.00039726,2]
[377235530,1754305950130,-400.0,0.00039726,2]
[377235531,1754305950139,-400.0,0.00039726,2]
[377235532,1754305950149,-626.409267,0.00039726,14]
[377235533,1754305950159,-400.0,0.00039726,2]
[377235534,1754305950170,-400.0,0.00039726,2]
[377235535,1754305950180,-1059.24,0.00039726,2]
[377235536,1754305950190,-2092.15,0.00039726,2]
[377235537,1754305950200,-533.38,0.00039726,2]
[377235538,1754305950211,-890.3,0.00039726,2]
[377235539,1754305950222,-400.0,0.00039726,2]
[377235540,1754305950232,-501.38,0.00039726,2]
[377235541,1754305950243,-1366.75,0.00039726,2]
[377235542,1754305950253,-990.2,0.00039726,2]
[377235543,1754305950263,-1441.16,0.00039726,2]
[377235544,1754305950274,-545.68,0.00039726,2]
[377235545,1754305950284,-690.08,0.00039726,2]
[377235546,1754305950294,-400.0,0.00039726,2]
[377235547,1754305950304,-400.0,0.00039726,2]
[377235548,1754305950315,-726.21,0.00039726,2]
[377235549,1754305950326,-803.42,0.00039726,2]
[377235550,1754305950335,-645.51,0.00039726,2]
[377235551,1754305950345,-400.0,0.00039726,2]
[377235552,1754305950354,-400.0,0.00039726,2]
[377235553,1754305950363,-400.0,0.00039726,2]
[377235554,1754305950372,-400.0,0.00039726,2]
[377235555,1754305950382,-506.95,0.00039726,2]
[377235556,1754305950391,-788.62,0.00039726,2]
[377235557,1754305950401,-931.05,0.00039726,2]
[377235558,1754305950411,-2071.07,0.00039726,2]
[377235559,1754305950421,-400.0,0.00039726,2]
[377235560,1754305950431,-400.0,0.00039726,2]
[377235561,1754305950441,-400.0,0.00039726,2]
[377235562,1754305950703,-400.0,0.00039726,2]
[377235563,1754305950713,-552.88,0.00039726,2]
[377235564,1754305950722,-1077.59,0.00039726,2]
[377235565,1754305950732,-400.0,0.00039726,2]
[377235566,1754305950742,-1479.72,0.00039726,2]
[377235567,1754305950751,-400.0,0.00039726,2]
[377235568,1754305950761,-551.2,0.00039726,2]
[377235569,1754305950770,-400.0,0.00039726,2]
[377235570,1754305950780,-404.78551888,0.00039726,2]
[377235571,1754305950790,-418.78,0.00039726,120]
[377235572,1754305950800,-400.0,0.00039726,2]
[377235573,1754305950809,-400.0,0.00039726,2]
[377235574,1754305950818,-628.0,0.00039726,2]
[377235575,1754305950828,-1186.41,0.00039726,2]
[377235576,1754305950838,-400.0,0.00039726,2]
[377235577,1754305950848,-400.0,0.00039726,2]
[377235578,1754305950858,-400.0,0.00039726,2]
[377235579,1754305950868,-1047.92,0.00039726,2]
[377235580,1754305950877,-400.0,0.00039726,2]
[377235581,1754305950887,-1368.23,0.00039726,2]
[377235582,1754305950897,-882.59,0.00039726,2]
[377235583,1754305950908,-845.07,0.00039726,2]
[377235584,1754305950922,-1022.16,0.00039726,2]
[377235585,1754305950933,-627.42,0.00039726,2]
[377235586,1754305950942,-1654.02,0.00039726,2]
[377235587,1754305950952,-928.07,0.00039726,2]
[377235588,1754305950963,-463.65,0.00039726,2]
[377235589,1754305950973,-987.02,0.00039726,2]
[377235590,1754305950982,-1127.8,0.00039726,2]
[377235591,1754305950993,-1457.97,0.00039726,2]
[377235592,1754305951002,-1263.43,0.00039726,2]
[377235593,1754305951012,-732.77,0.00039726,2]
[377235594,1754305951021,-400.0,0.00039726,2]
[377235595,1754305951030,-1338.78,0.00039726,2]
[377235596,1754305951039,-1212.72,0.00039726,2]
[377235597,1754305951049,-1364.75,0.00039726,2]
[377235598,1754305951060,-379.39791855,0.00039726,2]
[377235599,1754305951070,-719.82,0.00039726,2]
[377235600,1754305951080,-151.0,0.00039726,14]
[377235601,1754305951091,-3088.08,0.00039726,2]
[377235602,1754305951102,-1963.71,0.00039726,2]
[377235603,1754305951113,-669.31,0.00039726,2]
[377235604,1754305951123,-274.50369655,0.00039726,2]
[377235605,1754305951132,-400.0,0.00039726,2]
[377235606,1754305951143,-400.0,0.00039726,2]
[377235607,1754305951153,-1725.86,0.00039726,2]
[377235608,1754305951164,-1049.12,0.00039726,2]
[377235609,1754305951175,-151.0,0.00039726,14]
[377235610,1754305951185,-470.83,0.00039726,2]
[377235611,1754305951195,-400.0,0.00039726,2]
[377235612,1754305951204,-1157.0,0.00039726,2]
[377235613,1754305951214,-1718.88,0.00039726,2]
[377235614,1754305951223,-400.0,0.00039726,2]
[377235615,1754305951233,-888.73,0.00039726,2]
[377235616,1754305951244,-574.83,0.00039726,2]
[377235617,1754305951254,-400.0,0.00039726,2]
[377235618,1754305951264,-400.0,0.00039726,2]
[377235619,1754305951274,-1630.61,0.00039726,2]
[377235620,1754305951283,-400.0,0.00039726,2]
[377235621,1754305951293,-629.17,0.00039726,2]
[377235622,1754305951302,-400.0,0.00039726,2]
[377235623,1754305951312,-1303.32,0.00039726,2]
[377235624,1754305951321,-1485.45,0.00039726,2]
[377235625,1754305951331,-666.66,0.00039726,2]
[377235626,1754305951341,-603.36,0.00039726,2]
[377235627,1754305951350,-495.64,0.00039726,2]
[377235628,1754305951360,-718.11,0.00039726,2]
[377235629,1754305951369,-1527.44,0.00039726,2]
[377235630,1754305951379,-400.0,0.00039726,2]
[377235631,1754305951389,-1307.14,0.00039726,2]
[377235632,1754305951398,-400.0,0.00039726,2]
[377235633,1754305951408,-400.0,0.00039726,2]
[377235634,1754305951418,-1110.24,0.00039726,2]
[377235635,1754305951428,-869.15,0.00039726,2]
[377235636,1754305951437,-536.27,0.00039726,2]
[377235637,1754305951447,-966.32,0.00039726,2]
[377235638,1754305951456,-1091.81,0.00039726,2]
[377235639,1754305951465,-1130.18,0.00039726,2]
[377235640,1754305951475,-1117.05,0.00039726,2]
[377235641,1754305951484,-400.0,0.00039726,2]
[377235642,1754305951493,-905.65,0.00039726,2]
[377235643,1754305951504,-1075.79,0.00039726,2]
[377235644,1754305951514,-471.33,0.00039726,2]
[377235645,1754305951524,-400.0,0.00039726,2]
[377235646,1754305951533,-912.08,0.00039726,2]
[377235647,1754305951543,-400.0,0.00039726,2]
[377235648,1754305951552,-400.0,0.00039726,2]
[377235649,1754305951563,-798.59,0.00039726,2]
[377235650,1754305951572,-400.0,0.00039726,2]
[377235651,1754305951582,-1354.83,0.00039726,2]
[377235652,1754305951591,-480.95941687,0.00039726,2]
[377235653,1754305951601,-1284.95,0.00039726,2]
[377235654,1754305951611,-1268.26,0.00039726,2]
[377235655,1754305951621,-1400.07,0.00039726,2]
[377235656,1754305951631,-400.0,0.00039726,2]
[377235657,1754305951640,-862.24,0.00039726,2]
[377235658,1754305951649,-631.36,0.00039726,2]
[377235659,1754305951659,-400.0,0.00039726,2]
[377235660,1754305951668,-699.87,0.00039726,2]
[377235661,1754305951678,-1343.86,0.00039726,2]
[377235662,1754305951688,-434.19,0.00039726,2]
[377235663,1754305951698,-743.43,0.00039726,2]
[377235664,1754305951707,-418.89,0.00039726,2]
[377235665,1754305951717,-616.73,0.00039726,2]
[377235666,1754305951726,-400.0,0.00039726,2]
[377235667,1754305951736,-927.18,0.00039726,2]
[377235668,1754305951746,-875.84,0.00039726,2]
[377235669,1754305951757,-401.79233705,0.00039726,2]
[377235670,1754305951766,-400.0,0.00039726,2]
[377235671,1754305951776,-1329.19,0.00039726,2]
[377235672,1754305951787,-1658.94,0.00039726,2]
[377235673,1754305951796,-1333.24,0.00039726,2]
[377235674,1754305951806,-944.68,0.00039726,2]
[377235675,1754305951815,-1252.38,0.00039726,2]
[377235676,1754305951825,-400.0,0.00039726,2]
[377235677,1754305951835,-1263.4,0.00039726,2]
[377235678,1754305951844,-967.63,0.00039726,2]
[377235679,1754305951854,-400.0,0.00039726,2]
[377235680,1754305951863,-414.76,0.00039726,2]
[377235681,1754305951873,-400.0,0.00039726,2]
[377235682,1754305951882,-400.0,0.00039726,2]
[377235683,1754305951892,-412.29,0.00039726,2]
[377235684,1754305951902,-605.41,0.00039726,2]
[377235685,1754305951914,-886.22,0.00039726,2]
[377235686,1754305951923,-1748.2,0.00039726,2]
[377235687,1754305951933,-1117.53,0.00039726,2]
[377235688,1754305951944,-2048.38,0.00039726,2]
[377235689,1754305951954,-3038.05,0.00039726,2]
[377235690,1754305951964,-673.68,0.00039726,2]
[377235691,1754305951973,-400.0,0.00039726,2]
[377235692,1754305951982,-400.0,0.00039726,2]
[377235693,1754305951992,-611.63,0.00039726,2]
[377235694,1754305952003,-1068.97,0.00039726,2]
[377235695,1754305952013,-156.612544,0.00039726,14]
[377235696,1754305952023,-413.71438832,0.00039726,2]
[377235697,1754305952032,-841.94,0.00039726,2]
[377235698,1754305952042,-1348.61,0.00039726,2]
[377235699,1754305952051,-4263.58,0.00039726,2]
[377235700,1754305952061,-590.51,0.00039726,2]
[377235701,1754305952071,-547.13596913,0.00039726,2]
[377235702,1754305952081,-383.98326294,0.00039726,2]
[377235703,1754305952090,-400.0,0.00039726,2]
[377235704,1754305952100,-1778.85,0.00039726,2]
[377235705,1754305952110,-400.0,0.00039726,2]
[377235706,1754305952119,-661.31,0.00039726,2]
[377235707,1754305952129,-1374.4,0.00039726,2]
[377235708,1754305952138,-888.64,0.00039726,2]
[377235709,1754305952148,-400.0,0.00039726,2]
[377235710,1754305952157,-1281.23,0.00039726,2]
[377235711,1754305952167,-1558.5,0.00039726,2]
[377235712,1754305952176,-632.03,0.00039726,2]
[377235713,1754305952185,-838.38,0.00039726,2]
[377235714,1754305952195,-1793.86,0.00039726,2]
[377235715,1754305952204,-400.0,0.00039726,2]
[377235716,1754305952213,-400.0,0.00039726,2]
[377235717,1754305952223,-719.42,0.00039726,2]
[377235718,1754305952232,-2346.34,0.00039726,2]
[377235719,1754305952242,-2208.08,0.00039726,2]
[377235720,1754305952252,-6220.24,0.00039726,2]
[377235721,1754305952262,-2028.4,0.00039726,2]
[377235722,1754305952271,-400.0,0.00039726,2]
[377235723,1754305952281,-959.16,0.00039726,2]
[377235724,1754305952290,-2121.06,0.00039726,2]
[377235725,1754305952300,-1009.99,0.00039726,2]
[377235726,1754305952310,-400.0,0.00039726,2]
[377235727,1754305952319,-400.0,0.00039726,2]
[377235728,1754305952329,-1421.12,0.00039726,2]
[377235729,1754305952339,-400.0,0.00039726,2]
[377235730,1754305952348,-1169.71,0.00039726,2]
[377235731,1754305952358,-693.34,0.00039726,2]
[377235732,1754305952368,-1366.07,0.00039726,2]
[377235733,1754305952377,-1689.54,0.00039726,2]
[377235734,1754305952388,-1110.66,0.00039726,2]
[377235735,1754305952398,-487.34,0.00039726,2]
[377235736,1754305952407,-2122.58,0.00039726,2]
[377235737,1754305952417,-401.93,0.00039726,2]
[377235738,1754305952427,-548.21,0.00039726,2]
[377235739,1754305952436,-2428.92,0.00039726,2]
[377235740,1754305952446,-1096.89,0.00039726,2]
[377235741,1754305952456,-400.0,0.00039726,2]
[377235742,1754305952465,-400.0,0.00039726,2]
[377235743,1754305952475,-400.0,0.00039726,2]
[377235744,1754305952486,-558.13,0.00039726,2]
[377235745,1754305952496,-1162.47,0.00039726,2]
[377235746,1754305952507,-683.16,0.00039726,2]
[377235747,1754305952516,-4527.79,0.00039726,2]
[377235748,1754305952526,-688.63,0.00039726,2]
[377235749,1754305952536,-400.0,0.00039726,2]
[377235750,1754305952546,-399.11765676,0.00039726,2]
[377235751,1754305952556,-400.0,0.00039726,2]
[377235752,1754305952566,-400.0,0.00039726,2]
[377235753,1754305952576,-5396.72,0.00039726,2]
[377235754,1754305952586,-787.49,0.00039726,2]
[377235755,1754305952595,-1940.04,0.00039726,2]
[377235756,1754305952605,-642.79,0.00039726,2]
[377235757,1754305952614,-400.0,0.00039726,2]
[377235758,1754305952624,-400.0,0.00039726,2]
[377235759,1754305952633,-4563.07,0.00039726,2]
[377235760,1754305952643,-1973.82,0.00039726,2]
[377235761,1754305952652,-1666.37,0.00039726,2]
[377235762,1754305952662,-400.0,0.00039726,2]
[377235763,1754305952671,-400.0,0.00039726,2]
[377235764,1754305952681,-524.97,0.00039726,2]
[377235765,1754305952690,-962.89,0.00039726,2]
[377235766,1754305952700,-778.62,0.00039726,2]
[377235767,1754305952710,-400.0,0.00039726,2]
[377235768,1754305952720,-1536.5,0.00039726,2]
[377235769,1754305952731,-1125.71,0.00039726,2]
[377235770,1754305952741,-151.0,0.00039726,14]
[377235771,1754305952751,-151.0,0.00039726,14]
[377235772,1754305952761,-2940.43,0.00039726,2]
[377235773,1754305952770,-802.26,0.00039726,2]
[377235774,1754305952780,-8227.11,0.00039726,2]
[377235775,1754305952789,-770.91,0.00039726,2]
[377235776,1754305952798,-11138.27,0.00039726,2]
[377235777,1754305952807,-458.47,0.00039726,2]
[377235778,1754305952817,-1728.23,0.00039726,2]
[377235779,1754305952826,-2047.73,0.00039726,2]
[377235780,1754305952836,-435.87804967,0.00039726,2]
[377235781,1754305952845,-2159.66,0.00039726,2]
[377235782,1754305952854,-1756.78,0.00039726,2]
[377235783,1754305952863,-445.29,0.00039726,2]
[377235784,1754305952872,-2736.99,0.00039726,2]
[377235785,1754305952882,-1618.06,0.00039726,2]
[377235786,1754305952892,-581.83,0.00039726,2]
[377235787,1754305952901,-893.35,0.00039726,2]
[377235788,1754305952912,-9079.6,0.00039726,2]
[377235789,1754305952923,-151.0,0.00039726,14]
[377235790,1754305952932,-1865.31,0.00039726,2]
[377235791,1754305952942,-400.0,0.00039726,2]
[377235792,1754305952951,-1394.73,0.00039726,2]
[377235793,1754305952960,-1087.63,0.00039726,2]
[377235794,1754305952970,-151.0,0.00039726,14]
[377235795,1754305952979,-400.0,0.00039726,2]
[377235796,1754305952988,-997.42,0.00039726,2]
[377235797,1754305952998,-3648.6,0.00039726,2]
[377235798,1754305953009,-400.0,0.00039726,2]
[377235799,1754305953019,-510.65,0.00039726,2]
[377235800,1754305953029,-1873.61,0.00039726,2]
[377235801,1754305953039,-1200.71,0.00039726,2]
[377235802,1754305953049,-400.0,0.00039726,2]
[377235803,1754305953058,-520.48,0.00039726,2]
[377235804,1754305953068,-1629.46,0.00039726,2]
[377235805,1754305953077,-531.96,0.00039726,2]
[377235806,1754305953087,-875.07,0.00039726,2]
[377235807,1754305953097,-1001.01,0.00039726,2]
[377235808,1754305953106,-6021.56,0.00039726,2]
[377235809,1754305953116,-3451.49,0.00039726,2]
[377235810,1754305953126,-688.87,0.00039726,2]
[377235811,1754305953136,-400.0,0.00039726,2]
[377235812,1754305953146,-400.0,0.00039726,2]
[377235813,1754305953156,-659.18,0.00039726,2]
[377235814,1754305953166,-1875.95,0.00039726,2]
[377235815,1754305953177,-905.16,0.00039726,2]
[377235816,1754305953187,-2160.03,0.00039726,2]
[377235817,1754305953197,-618.84,0.00039726,2]
[377235818,1754305953207,-491.69,0.00039726,2]
[377235819,1754305953327,-1286.32,0.00039726,2]
[377235820,1754305953337,-476.99,0.00039726,2]
[377235821,1754305953346,-713.76,0.00039726,2]
[377235822,1754305953355,-1377.16,0.00039726,2]
[377235823,1754305953365,-580.3,0.00039726,2]
[377235824,1754305953375,-1539.83,0.00039726,2]
[377235825,1754305953384,-727.44,0.00039726,2]
[377235826,1754305953393,-582.52,0.00039726,2]
[377235827,1754305953403,-400.0,0.00039726,2]
[377235828,1754305953413,-400.0,0.00039726,2]
[377235829,1754305953422,-406.58,0.00039726,2]
[377235830,1754305953432,-1515.13,0.00039726,2]
[377235831,1754305953446,-3107.23,0.00039726,2]
[377235832,1754305953456,-1891.71,0.00039726,2]
[377235833,1754305953470,-1032.57,0.00039726,2]
[377235834,1754305953481,-400.0,0.00039726,2]
[377235835,1754305953491,-6316.72,0.00039726,2]
[377235836,1754305953501,-1732.93,0.00039726,2]
[377235837,1754305953511,-1238.95,0.00039726,2]
[377235838,1754305953520,-1698.39,0.00039726,2]
[377235839,1754305953530,-400.0,0.00039726,2]
[377235840,1754305953539,-1178.78,0.00039726,2]
[377235841,1754305953548,-400.0,0.00039726,2]
[377235842,1754305953558,-400.0,0.00039726,2]
[377235843,1754305953569,-1670.39,0.00039726,2]
[377235844,1754305953578,-1066.08,0.00039726,2]
[377235845,1754305953588,-400.0,0.00039726,2]
[377235846,1754305953597,-1868.67,0.00039726,2]
[377235847,1754305953607,-2052.93,0.00039726,2]
[377235848,1754305953617,-533.88,0.00039726,2]
[377235849,1754305953626,-1689.09,0.00039726,2]
[377235850,1754305953635,-1644.64,0.00039726,2]
[377235851,1754305953645,-400.0,0.00039726,2]
[377235852,1754305953655,-942.3,0.00039726,2]
[377235853,1754305953665,-1545.77,0.00039726,2]
[377235854,1754305953676,-1572.92,0.00039726,2]
[377235855,1754305953685,-1113.34,0.00039726,2]
[377235856,1754305953695,-8388.36,0.00039726,2]
[377235857,1754305953705,-1722.33,0.00039726,2]
[377235858,1754305953715,-1766.11,0.00039726,2]
[377235859,1754305953725,-1306.14,0.00039726,2]
[377235860,1754305953735,-1596.57,0.00039726,2]
[377235861,1754305953745,-819.3,0.00039726,2]
[377235862,1754305953755,-400.0,0.00039726,2]
[377235863,1754305953766,-1501.24,0.00039726,2]
[377235864,1754305953775,-1264.88,0.00039726,2]
[377235865,1754305953785,-431.73,0.00039726,2]
[377235866,1754305953794,-400.0,0.00039726,2]
[377235867,1754305953803,-1010.21,0.00039726,2]
[377235868,1754305953813,-1156.04,0.00039726,2]
[377235869,1754305953822,-873.38,0.00039726,2]
[377235870,1754305953831,-400.0,0.00039726,2]
[377235871,1754305953840,-1469.78,0.00039726,2]
[377235872,1754305953850,-4195.1,0.00039726,2]
[377235873,1754305953861,-465.99008398,0.00039726,2]
[377235874,1754305953870,-1925.04,0.00039726,2]
[377235875,1754305953880,-714.27,0.00039726,2]
[377235876,1754305953889,-400.0,0.00039726,2]
[377235877,1754305953898,-817.57,0.00039726,2]
[377235878,1754305953907,-1923.74,0.00039726,2]
[377235879,1754305953920,-400.0,0.00039726,2]
[377235880,1754305953929,-1747.36,0.00039726,2]
[377235881,1754305953938,-1337.16,0.00039726,2]
[377235882,1754305953947,-694.89,0.00039726,2]
[377235883,1754305953956,-400.0,0.00039726,2]
[377235884,1754305953966,-1374.38,0.00039726,2]
[377235885,1754305953975,-670.37,0.00039726,2]
[377235886,1754305953985,-417.39361632,0.00039726,2]
[377235887,1754305953998,-5776.09,0.00039726,2]
[377235888,1754305954008,-1448.9,0.00039726,2]
[377235889,1754305954017,-1746.78,0.00039726,2]
[377235890,1754305954027,-400.0,0.00039726,2]
[377235891,1754305954037,-1793.17,0.00039726,2]
[377235892,1754305954047,-1183.71,0.00039726,2]
[377235893,1754305954057,-400.0,0.00039726,2]
[377235894,1754305954068,-400.0,0.00039726,2]
[377235895,1754305954078,-6346.76,0.00039726,2]
[377235896,1754305954088,-400.0,0.00039726,2]
[377235897,1754305954099,-455.16,0.00039726,2]
[377235898,1754305954110,-1230.85,0.00039726,2]
[377235899,1754305954120,-400.0,0.00039726,2]
[377235900,1754305954131,-400.0,0.00039726,2]
[377235901,1754305954142,-941.56,0.00039726,2]
[377235902,1754305954154,-400.0,0.00039726,2]
[377235903,1754305954165,-1208.54,0.00039726,2]
[377235904,1754305954175,-1363.88,0.00039726,2]
[377235905,1754305954186,-400.0,0.00039726,2]
[377235906,1754305954197,-1603.12,0.00039726,2]
[377235907,1754305954207,-2444.62,0.00039726,2]
[377235908,1754305954219,-400.0,0.00039726,2]
[377235909,1754305954230,-968.13,0.00039726,2]
[377235910,1754305954240,-642.68,0.00039726,2]
[377235911,1754305954250,-521.68,0.00039726,2]
[377235912,1754305954262,-400.0,0.00039726,2]
[377235913,1754305954273,-2154.85,0.00039726,2]
[377235914,1754305954284,-1754.23,0.00039726,2]
[377235915,1754305954295,-400.0,0.00039726,2]
[377235916,1754305954306,-1266.17,0.00039726,2]
[377235917,1754305954317,-2358.63,0.00039726,2]
[377235918,1754305954328,-532.52,0.00039726,2]
[377235919,1754305954339,-403.29,0.00039726,2]
[377235920,1754305954349,-1735.99,0.00039726,2]
[377235921,1754305954360,-400.0,0.00039726,2]
[377235922,1754305954372,-1686.63,0.00039726,2]
[377235923,1754305954384,-403.11,0.00039726,2]
[377235924,1754305954395,-759.33,0.00039726,2]
[377235925,1754305954406,-1873.9,0.00039726,2]
[377235926,1754305954416,-400.0,0.00039726,2]